Cogmind - Beta 11.1 @@@ ROGUE MODE // 2022.07.24 @ 18:23:38 Player: gorb Result: Self-destructed Performance ------------- Evolutions (1) 500 Regions Visited (2) 400 Robots Destroyed (16) 80 Value Destroyed (205) 205 Prototype IDs (0) 0 Alien Tech Used (0) 0 Bonus (0) 0 TOTAL SCORE: 1185 Bonus ------- None Cogmind --------- Core Integrity 36/400 Matter 283/300 Energy 100/100 System Corruption 0% Temperature Cool (0) Movement Core (1350) Ox26 Location -9/Materials Parts ------- > --- POWER (2) -------- (None) > --- PROPULSION (2) --- (None) > --- UTILITY (3) ------ Huge Storage Unit Power Shielding > --- WEAPON (2) ------- (None) > --- INVENTORY (25) --- Improved Aluminum Leg Small Storage Unit High-capacity Storage Unit Targeting Computer High-powered Tractor Beam Trap Extractor (0/4) Light Assault Rifle Peak State ------------ > --- POWER ------------ Light Nuclear Core > --- PROPULSION ------- Light Treads Armored Wheel > --- UTILITY ---------- Huge Storage Unit Terrain Scanner Power Shielding > --- WEAPON ----------- Beam Cannon Light Cannon > --- INVENTORY -------- Small Storage Unit High-capacity Storage Unit Light Assault Rifle [Rating: 11] Favorites ----------- Power Ion Engine Engine Ion Engine Power Core Light Nuclear Core Propulsion Light Treads Treads Light Treads Wheel Armored Wheel Utility Power Shielding Device Terrain Scanner Storage Huge Storage Unit Protection Power Shielding Weapon Beam Cannon Energy Gun Small Laser Energy Cannon Beam Cannon Ballistic Gun Light Assault Rifle Ballistic Cannon Light Cannon Build | -11 -10 -9 ------- Run | Scr Mat Mat Slots Evolved 2 | . . 2 Power 1 | . . 1 Propulsion . | . . . Utility 1 | . . 1 Weapon . | . . . Parts Attached 15 | 4 8 3 Power 2 | 1 1 . Engine 1 | 1 . . Core 1 | . 1 . Reactor . | . . . Propulsion 3 | 2 . 1 Treads 2 | 2 . . Leg . | . . . Wheel 1 | . . 1 Hover . | . . . Flight . | . . . Utility 6 | . 5 1 Device 2 | . 1 1 Storage 3 | . 3 . Processor . | . . . Hackware . | . . . Protection 1 | . 1 . Artifact . | . . . Weapon 4 | 1 2 1 Energy Gun 1 | . . 1 Energy Cannon 1 | . 1 . Ballistic Gun 1 | 1 . . Ballistic Cannon 1 | . 1 . Launcher . | . . . Special Weapon . | . . . Impact Weapon . | . . . Slashing Weapon . | . . . Piercing Weapon . | . . . Special Melee Weapon . | . . . Unidentified Prototypes . | . . . Parts Lost 9 | . 2 7 Power 2 | . 1 1 Propulsion 3 | . 1 2 Utility 1 | . . 1 Weapon 3 | . . 3 Highest Loss Streak 4 | . 2 4 To Critical Strikes . | . . . Average Slot Usage (%) 86 | . 90 72 Engine 6 | . 8 . Core 5 | . 5 8 Treads 18 | . 22 7 Wheel 1 | . . 8 Device 2 | . . 9 Storage 12 | . 13 11 Protection 12 | . 12 11 Energy Cannon 11 | . 13 7 Ballistic Gun 5 | . 6 . Ballistic Cannon 7 | . 7 8 Naked Turns . | . . . Heaviest Build 93 | 6 92 93 Greatest Support 40 | 40 40 20 Greatest Overweight (x) 26 | . 4 26 Average Overweight (x) 2 | . 1 6 Largest Inventory Capacity 25 | 5 25 25 Average Capacity 21 | 5 21 25 Most Carried 7 | 3 5 7 Average Carried 3 | . 2 4 Final Capacity 25 | 5 25 25 Final Carried 7 | 1 4 7 Class Distribution -------------------- 100% | Mutant Dominant Class ---------------- Mutant | -10/Materials Mutant | -9/Materials Resources | -11 -10 -9 ----------- Run | Scr Mat Mat Matter Collected 388 | 218 150 20 Remotely . | . . . Salvage Created 337 | . 292 45 Parts 30 | . 24 6 Haulers Intercepted . | . . . Recyclers Shooed . | . . . Parts Field Recycled . | . . . Retrieved Matter . | . . . Parts Self-Destructed . | . . . Prevented . | . . . Kills | -11 -10 -9 ------- Run | Scr Mat Mat Combat Hostiles Destroyed 12 | . 8 4 Guns 6 | . 3 3 Cannons 6 | . 5 1 Classes Destroyed 5 | . 5 . Worker 2 | . 2 . Recycler 1 | . 1 . Watcher 1 | . 1 . Swarmer 10 | . 6 4 Grunt 2 | . 2 . Best Kill Streak 3 | . 3 2 Combat Bots Only 3 | . 3 2 Max Kills in Single Turn 2 | . 2 1 Gunslinging . | . . . Exploded . | . . . Melee . | . . . Uniques/NPCs Destroyed . | . . . Combat | -11 -10 -9 -------- Run | Scr Mat Mat Damage Taken 1497 | . 599 898 Core 488 | . 124 364 Absorbed by Shields . | . . . Redirected to Shielding 29 | . 12 17 Core Remaining (%) 75 | 100 50 . Volleys Fired 47 | . 22 25 Largest 2 | . 2 2 Hottest 95 | . 95 95 Shots Fired 64 | . 35 29 Gun 19 | . 5 14 Cannon 45 | . 30 15 Launcher . | . . . Special . | . . . Kinetic 30 | . 19 11 Thermal 34 | . 16 18 Explosive . | . . . Electromagnetic . | . . . Robot Hit Streak 5 | . 3 5 Robot Miss Streak 3 | . 3 3 Penetration Max . | . . . Secondary Targets . | . . . Shots Hit Robots 30 | . 15 15 Core Hits 18 | . 13 5 Critical Kills . | . . . Critical Parts Destroyed . | . . . Critical Strikes . | . . . Melee Attacks . | . . . Impact . | . . . Slashing . | . . . Piercing . | . . . Sneak Attacks . | . . . Combat Hostiles . | . . . Follow-up Attacks . | . . . Damage Inflicted 547 | . 304 243 Guns 143 | . 29 114 Cannons 388 | . 269 119 Explosions . | . . . Melee . | . . . Ramming 16 | . 6 10 Kinetic 259 | . 175 84 Thermal 272 | . 123 149 Explosive . | . . . Electromagnetic . | . . . Impact . | . . . Slashing . | . . . Piercing . | . . . Highest Corruption . | . . . Average Corruption . | . . . Corruption Purged . | . . . Corruption Blocked . | . . . Overload Shots . | . . . Overflow Damage . | . . . Projectiles . | . . . Explosions . | . . . Melee . | . . . Knockbacks 3 | . 1 2 Impact . | . . . Kinetic 3 | . 1 2 Secondary . | . . . Self-Inflicted Damage 5 | . . 5 Shots . | . . . Rammed 2 | . 1 1 Targets Rammed 2 | . 1 1 Kicked . | . . . Crushed . | . . . Highest Temperature 211 | . 211 90 Average Temperature 54 | . 57 45 Received Heat Transfer 192 | . 192 . Siege Activations . | . . . Robots Corrupted . | . . . Combat Hostiles . | . . . Parts Fried . | . . . Impact Corruptions . | . . . Robots Melted . | . . . Combat Hostiles . | . . . Parts Melted 1 | . . 1 Heat Transferred 583 | . 259 324 Parts Sabotaged . | . . . Parts Stolen . | . . . Parts Stripped . | . . . Power Chain Reactions . | . . . Missiles Intercepted . | . . . Alert | -11 -10 -9 ------- Run | Scr Mat Mat Peak Influence 117 | . 117 85 Initial . | . . . Average 28 | . 34 13 Maximum Alert Level . | . . . Low Security (%) 100 | 100 100 100 Level 1 . | . . . Level 2 . | . . . Level 3 . | . . . Level 4 . | . . . Level 5 . | . . . High Security . | . . . Max Security . | . . . Squads Dispatched . | . . . Investigation . | . . . Extermination . | . . . Reinforcement . | . . . Assault . | . . . Garrison . | . . . Intercept . | . . . Searches Triggered . | . . . Construction Impeded . | . . . Haulers Reinforced . | . . . Active Scanning Responses . | . . . Cargo Convoy Interrupts . | . . . Stealth | -11 -10 -9 --------- Run | Scr Mat Mat Distress Signals . | . . . Communications Jammed . | . . . Distress Signals . | . . . Times Spotted 25 | . 15 10 Peak Tracking Total 6 | . 6 4 Tactical Retreats 1 | . . 1 Traps | -11 -10 -9 ------- Run | Scr Mat Mat Traps Triggered . | . . . Indirectly . | . . . Trap Hack Attempts . | . . . Triggered . | . . . Disarmed . | . . . Reprogrammed 1 | . 1 . Reused . | . . . Traps Extracted . | . . . Installed . | . . . Triggered . | . . . Machines | -11 -10 -9 ---------- Run | Scr Mat Mat Machines Disabled . | . . . Max in Single Turn . | . . . Machines Sabotaged . | . . . Garrisons Compromised . | . . . Overloaded Fab Kills . | . . . Hacking | -11 -10 -9 --------- Run | Scr Mat Mat Machines Accessed 3 | . 3 . Terminals 3 | . 3 . Fabricators . | . . . Repair Stations . | . . . Recycling Units . | . . . Scanalyzers . | . . . Garrison Access . | . . . Total Hacks 6 | . 6 . Successful 3 | . 3 . Failed 3 | . 3 . Catastrophic . | . . . Database Lockouts . | . . . Manual . | . . . Terminals 6 | . 6 . Fabricators . | . . . Repair Stations . | . . . Recycling Units . | . . . Scanalyzers . | . . . Garrison Access . | . . . Terminal Hacks 3 | . 3 . Record 2 | . 2 . Reprogram Traps 1 | . 1 . Fabricator Hacks . | . . . Repair Station Hacks . | . . . Recycling Unit Hacks . | . . . Scanalyzer . | . . . Garrison Access Hacks . | . . . Unauthorized Hacks . | . . . Terminals . | . . . Fabricators . | . . . Repair Stations . | . . . Recycling Units . | . . . Scanalyzers . | . . . Garrison Access . | . . . Data Cores Recovered . | . . . Used . | . . . Hacking Detections . | . . . Full Trace Events . | . . . Feedback Events . | . . . Feedback Blocked . | . . . Robot Schematics Acquired . | . . . Robots Built . | . . . Authchips . | . . . Time . | . . . Total Robot Build Rating . | . . . Part Schematics Acquired . | . . . Parts Built . | . . . Authchips . | . . . Time . | . . . Total Part Build Rating . | . . . Parts Repaired . | . . . Time . | . . . Parts Recycled . | . . . Recycled Matter . | . . . Retrieved Matter . | . . . Retrieved Components . | . . . Parts Scanalyzed . | . . . Part Schematics Acquired . | . . . Parts Damaged . | . . . Bothacking | -11 -10 -9 ------------ Run | Scr Mat Mat Used RIF Installer . | . . . Robots Hacked . | . . . Non-combat . | . . . Combat . | . . . Robot Hacks Applied . | . . . Relay Couplers Released . | . . . Fabnet Peak Effective % . | . . . Robots Rewired . | . . . Allies Hacked . | . . . Hacks Repelled . | . . . Allies | -11 -10 -9 -------- Run | Scr Mat Mat Total Allies . | . . . Largest Group . | . . . Highest-Rated Group . | . . . Highest-Rated Ally . | . . . Total Orders . | . . . Ally Attacks . | . . . Total Damage . | . . . Kills . | . . . Allies Corrupted . | . . . Allies Melted . | . . . Intel | -11 -10 -9 ------- Run | Scr Mat Mat Robot Analysis Total . | . . . Derelict Logs Recovered . | . . . Drone Launches . | . . . Drone Recoveries . | . . . Exploration | -11 -10 -9 ------------- Run | Scr Mat Mat Turns Passed 2277 | 87 1662 528 Spaces Moved 803 | 57 549 197 Core 14 | 11 . 3 Treads 612 | 46 549 17 Legs . | . . . Wheels 177 | . . 177 Hover . | . . . Flight . | . . . Fastest Speed 50 | 50 160 180 Average Speed 265 | 138 289 234 Slowest Speed 1350 | 160 480 1350 Overloaded Moves . | . . . Propulsion Burnouts . | . . . Robots Hopped . | . . . Cave-ins Triggered . | . . . Exploration Rate (%) 28 | 4 70 11 Regions Visited 2 Branch Regions . Pre-discovered Areas . | . . . Known Exits Taken . | . . . Unknown Exits Taken 2 | 1 1 . Scrap Searched . | . . . Spaces Dug . | . . . Terrain Destroyed . | . . . Melee . | . . . Projectile . | . . . AOE . | . . . Terrain Rammed . | . . . Walls Destroyed . | . . . Machines Disabled . | . . . Actions | -11 -10 -9 --------- Run | Scr Mat Mat Total 883 | 65 586 232 Wait . | . . . Move 801 | 56 548 197 Hop . | . . . Pick Up 18 | 5 7 6 Fast Attach . | . . . Attach 11 | 4 4 3 Detach . | . . . Swap 4 | . 4 . Drop . | . . . Fire 47 | . 22 25 Melee . | . . . Ram 1 | . . 1 Kick . | . . . Crush 1 | . 1 . Escape Stasis . | . . . Rewire . | . . . Trap . | . . . Miscellaneous . | . . . Route ------- -11/Scrapyard -10/Materials (discovered 4 exits: *Mat x2 / [*Min x2]) -9/Materials History --------- Turn | Location | Event 15 | -11/Scrapyard | Discovered new exit (range 15) 88 | -11/Scrapyard | Entered Materials 148 | -10/Materials | Discovered new exit (range 3) 314 | -10/Materials | Build established: Mutant 467 | -10/Materials | Discovered new exit (range 13) 815 | -10/Materials | Discovered new exit (range 8) 1645 | -10/Materials | Discovered new exit (range 15) 1750 | -10/Materials | Entered another Materials area 1750 | -9/Materials | Evolved 2 slots: Power x1, Utility x1 2178 | -9/Materials | Lost 4 parts (1p1n2w) 2238 | -9/Materials | Core integrity fell below 50% 2267 | -9/Materials | Lost 3 parts (1n1u1w) 2273 | -9/Materials | Core integrity fell below 20% 2278 | -9/Materials | Self-destructed Last Messages --------------- Flight Unit melted. S-10 Pest destroyed. Acquired 7 matter. R-06 Scavenger collects Lgt. Assault Rifle. R-06 Scavenger collects Lgt. Ion Engine. Acquired 13 matter. R-06 Scavenger collects Lgt. Assault Rifle. R-06 Scavenger collects Flight Unit. Acquired Trap Extractor. Acquired Targeting Computer. Acquired Imp. Aluminum Leg. Terrain Scanner destroyed. Arm. Wheel destroyed. S-10 Pest destroyed. K-01 Serf collects debris. K-01 Serf cleans the Electrolysis Chamber. Sml. Laser destroyed. K-01 Serf destroyed. K-01 Serf cleans the Electrolysis Chamber. K-01 Serf collects debris. Map ----- +----------------------------------------------------+ | ????????????"?????# # #??????????????? | | ??????????? ??????# # #??????????????? | | ????????????? ??#?# # #?????#????????? | | ?????????????????## """ "" # #????#?????????? | | ?????????????"???## """ S"" # #????????? ????? | | ?????????? ???????# """ "" # #?#???????#????? | | ??????????????????# # #?#????????????? | | ????????????###########+######+####??#??????????? | | ????????????# #???#?????????? | | ????????????# #??#??????????? | | ????????????# ##?????#??????? | | ??????#?????## #####+####### ##?????#??????? | | ?????????????# ## ## #???#?#???????? | | ?????????#???# ## "" ## #?#???????????? | | ???#?????????# ## "" ## #?##? ? ?????? | | ?????????????# ## "T """ ## #???#?????????? | | ?????????????# ## "" """ ## #?##? ????????? | | ?????????????# ## "" """ ## ##??#?????????? | | ?????????????# ## # ############ | | ?????????????# ## # % | | ????????#????# ############ % | | ??????????#??# ###?#????#?# % % | | ?????????????# #?????##???# ############ | | ?????????????# #?????????####/#####??????????? | | ?????????????# ########### k #???????????? | | ?????????????# a s@s /s %""" #??????? ??? | | ???????????????############## kr""" #???????????? | | ??????????????????????#??#?## """ #??????? ??? | | ??????????????????????????#?# #? ????#????? | | ????????????????????#???#???# #???????????? | | ????????????????#????##?#?#?# #?????#?????? | | ?????????????????????????#?## ""#???????????? | | ?????????????????????#??#?#?# Y"#????#? ????? | | ??????????????????????? ????# ""#???????????? | | ???????????????"?????? ?????# #? ?????????? | | ????????????????????????????#########???????????? | | ????????????????????????"? ?????? ????? ????????? | | ????????????????????????? ????? ? ??????????????? | | ??????????????????#????????????? ????? ?????????? | | ????????????????????????????????????????????????? | | ????????????????????????????????????????????????? | | ????????????????????????????????????????????????? | | ?????????????????????#??????????????????????????? | | ????????????????????????????#???????????????????? | | ????????????????????????????????????????????????? | | ????????????????????????????????????????????????? | | ????????????????????????????????????????????????? | | ????????????????????????????????????????????????? | | ????????????????????????????????????????????????? | | ????????????????????????????????????????????????? | +----------------------------------------------------+ Best States ------------- Heat Dissipation 28 Energy Generation 14 Energy Capacity 250 Matter Stores 300 Matter Capacity 300 Sight Range 16 Terrain Scan Range 14 Terrain Scan Density 10 Power Shielding 33 Evasion (%) 50 Recoil Reduction 2 Item Schematics ----------------- None Robot Schematics ------------------ None Fabricated ------------ Nothing Alien Tech Used ----------------- None Achievements -------------- None Challenges ------------ None Game ------ Seed DamperLaserNukerbomber Manual? 0 Play Time 00:14:23 Cumulative 2.2 hours Start 2022.07.24 @ 18:02:24 End 2022.07.24 @ 18:23:38 Sessions 1 Manual Loads 0 Difficulty Rogue Special Mode None Game No. 4 Rogue 4 Adventurer 0 Explorer 0 Win Type - Total 0 Types 0/0/0/0/0/0/0/0/0 Lore% 1 Gallery% 5 Achievement% 5 Wizard Run 0 Options --------- ASCII 0 Keyboard 0 Movement Mouse Keybinds 0 Fullscreen 1 Font 18/Smallcaps Map View 76x50 Tactical HUD 0 Map Filters NONE Filters NONE Steam 1 RUN: 03426b72-7be7-47cd-8e05-4405c511144e